bitfinex-derivatives/quotes_SOLF0:USTF0_20250919
["timestamp","ask_amount","ask_price","bid_price","bid_amount"]
[1758283725050,64.6068,241.85,241.75,1.20452734]
[1758283725051,6.75,241.83,241.75,1.20452734]
[1758283725348,57.8594,241.84,241.75,1.20452734]
[1758283725349,3.7205,241.78,241.75,1.20452734]
[1758283725544,6.75,241.78,241.71,6.69]
[1758283725744,6.75,241.78,241.74,7.89452734]
[1758283726852,3.7207,241.77,241.74,7.89452734]
[1758283727754,10.4707,241.77,241.74,1.20452734]
[1758283728056,10.4707,241.77,241.74,7.89452734]
[1758283728256,3.7207,241.77,241.74,7.89452734]
[1758283729055,3.7207,241.77,241.75,6.69]
[1758283729357,6.75,241.81,241.75,6.69]
[1758283729358,3.7202,241.79,241.75,6.69]
[1758283729855,10.4702,241.79,241.75,6.69]
[1758283732359,6.75,241.79,241.75,6.69]
[1758283734060,3.72,241.81,241.75,6.69]
[1758283734260,10.47,241.81,241.75,6.69]
[1758283735859,3.7196,241.83,241.78,6.69]
[1758283736054,10.4696,241.83,241.77,7.89452734]
[1758283736460,6.75,241.83,241.77,7.89452734]
[1758283736656,6.75,241.83,241.8,7.89452734]
[1758283738469,10.489,241.87,241.81,6.51]
[1758283740664,6.77,241.87,241.83,7.71452734]
[1758283742467,6.77,241.91,241.83,7.71452734]
[1758283742668,10.4885,241.91,241.83,7.71452734]
[1758283742967,6.77,241.91,241.83,7.71452734]
[1758283743771,3.7188,241.89,241.83,6.51]
[1758283744970,6.77,241.92,241.83,6.51]
[1758283745270,6.77,241.92,241.8,8.39034948]
[1758283746464,3.7191,241.87,241.8,8.39034948]
[1758283748374,3.7193,241.86,241.8,8.39034948]
[1758283748877,3.7194,241.85,241.8,8.39034948]
[1758283749170,6.77,241.84,241.81,6.51]
[1758283750572,3.7194,241.85,241.81,6.51]
[1758283750774,3.7194,241.85,241.8,1.88034948]
[1758283750964,3.7194,241.85,241.81,6.51]
[1758283751164,3.7194,241.85,241.8,1.88034948]
[1758283751967,10.4894,241.85,241.81,6.51]
[1758283752974,10.4894,241.85,241.8,1.88034948]
[1758283753174,10.4894,241.85,241.81,6.51]
[1758283753375,10.4894,241.85,241.8,1.88034948]
[1758283753575,10.4894,241.85,241.81,6.51]
[1758283754177,10.4894,241.85,241.8,1.88034948]
[1758283754876,10.4894,241.85,241.81,6.51]
[1758283755175,6.77,241.84,241.81,6.51]
[1758283756079,6.77,241.84,241.8,1.88034948]
[1758283756286,10.489,241.87,241.81,6.51]
[1758283757476,3.7193,241.86,241.81,6.51]
[1758283757782,3.7193,241.86,241.8,8.39034948]
[1758283758877,6.77,241.87,241.81,6.51]
[1758283759083,0.71981136,241.93,241.81,6.51]
[1758283759084,6.77,241.92,241.81,6.51]
[1758283759571,6.77,241.92,241.8,1.88034948]
[1758283759772,6.77,241.92,241.76,35.96]
[1758283759773,6.77,241.92,241.85,6.51]
[1758283760080,6.77,241.97,241.85,6.51]
[1758283760585,3.7182,241.92,241.85,6.51]
[1758283763080,3.7182,241.92,241.85,10.2292]
[1758283763280,3.7182,241.92,241.86,6.51]
[1758283765385,10.488,241.94,241.87,3.719]
[1758283765586,6.77,241.94,241.88,6.51]
[1758283766083,6.77,241.98,241.88,6.51]
[1758283766484,3.7179,241.95,241.88,6.51]
[1758283767588,3.7181,241.94,241.88,6.51]
[1758283767988,57.828,241.97,241.88,6.51]
[1758283768184,6.77,241.96,241.88,6.51]
[1758283768786,3.7184,241.91,241.88,6.51]
[1758283769989,3.7184,241.91,241.85,31.76034948]
[1758283770995,3.7184,241.91,241.86,6.84]
[1758283771191,3.7184,241.91,241.85,31.76034948]
[1758283771797,3.7184,241.91,241.86,6.84]
[1758283772192,3.7184,241.91,241.85,31.76034948]
[1758283772397,3.7187,241.89,241.85,6.84]
[1758283772594,10.3487,241.89,241.86,6.84]
[1758283774194,10.3487,241.89,241.84,93.3379966]
[1758283774399,10.3487,241.89,241.85,6.84]
[1758283775303,10.3487,241.89,241.84,12.1779966]
[1758283775501,10.3487,241.89,241.82,43.12034948]
[1758283775698,10.3487,241.89,241.83,6.84]
[1758283776699,3.7187,241.89,241.83,6.84]
[1758283778404,3.7187,241.89,241.83,19.41649621]
[1758283782707,3.7184,241.91,241.84,6.84]
[1758283783804,3.7184,241.91,241.85,3.7192]
[1758283784809,3.7184,241.91,241.86,6.84]
[1758283785007,10.3484,241.91,241.85,3.7192]
[1758283785408,10.3484,241.91,241.86,6.84]
[1758283786909,10.3484,241.91,241.85,3.7192]
[1758283787106,3.7181,241.93,241.86,10.559]
[1758283787305,3.7181,241.93,241.86,3.719]
[1758283787501,3.7181,241.93,241.87,6.84]
[1758283790610,6.63,241.98,241.88,6.84]
[1758283791808,3.7177,241.96,241.9,3.7184]
[1758283792211,6.63,242.05,241.92,6.84]
[1758283793805,3.7172,242.0,241.93,3.718]
[1758283794008,3.7172,242.0,241.94,6.84]
[1758283795519,3.7167,242.02,241.94,10.5578]
[1758283795713,3.7167,242.02,241.95,7.16]
[1758283796616,7.16,242.03,241.95,10.8777]
[1758283797919,7.16,242.03,241.95,7.16]
[1758283798112,10.8767,242.03,241.95,7.16]
[1758283798313,7.16,242.03,241.95,7.16]
[1758283798715,6.81,241.99,241.88,7.14]
[1758283799313,10.5281,241.94,241.88,7.14]
[1758283799624,6.81,241.94,241.88,7.14]
[1758283800324,57.8272,241.98,241.85,312.48]
[1758283800524,6.81,241.96,241.86,100.66]
[1758283800716,57.8307,241.96,241.85,312.48]
[1758283800918,6.81,241.94,241.85,312.48]
[1758283801125,57.8307,241.96,241.85,413.12]
[1758283801332,57.8307,241.96,241.85,312.48]
[1758283801828,10.5285,241.91,241.85,312.48]
[1758283803424,6.81,241.88,241.85,312.48]
[1758283803727,1.20379876,241.88,241.8,7.14]
[1758283803925,3.7192,241.86,241.81,32.5]
[1758283804129,3.7192,241.86,241.81,81.36152631]
[1758283804429,10.5292,241.86,241.8,100.68]
[1758283804627,10.5292,241.86,241.8,107.82]
[1758283804928,10.5292,241.86,241.8,107.86]
[1758283805628,10.5292,241.86,241.8,7.14]
[1758283807428,10.5292,241.86,241.8,19.52462431]
[1758283808130,10.5292,241.86,241.8,120.20462431]
[1758283809530,10.5292,241.86,241.8,107.82]
[1758283810032,10.5292,241.86,241.8,7.14]
[1758283810226,11.73299876,241.86,241.8,7.14]
[1758283810524,11.73299876,241.86,241.8,40.16]
[1758283811129,8.01379876,241.83,241.76,7.14]
[1758283811329,8.01379876,241.83,241.77,100.68]
[1758283811627,6.81,241.79,241.76,7.14]
[1758283811837,6.81,241.79,241.72,4.63133619]
[1758283811838,11.73389876,241.8,241.74,100.68]
[1758283812027,11.73389876,241.8,241.72,19.79046458]
[1758283812227,3.7204,241.79,241.72,7.14]
[1758283812424,3.7204,241.79,241.73,100.68]
[1758283812634,3.7204,241.79,241.73,107.82]
[1758283814534,3.7204,241.79,241.73,7.14]
[1758283814735,10.5306,241.77,241.74,100.66]
[1758283814935,10.5306,241.77,241.73,107.8]
[1758283815132,10.5306,241.77,241.73,7.14]
[1758283815336,10.5306,241.77,241.71,312.48]
[1758283815337,6.81,241.75,241.71,319.62]
[1758283815533,6.81,241.75,241.71,420.28]
[1758283815734,1.20379876,241.77,241.67,7.14]
[1758283815735,6.81,241.76,241.67,7.14]
[1758283815935,3.721,241.74,241.68,100.66]
[1758283816237,6.81,241.76,241.69,7.14]
[1758283816736,3.7209,241.75,241.69,7.14]
[1758283817633,6.81,241.72,241.68,68.8]
[1758283817839,6.81,241.72,241.68,75.94]
[1758283818236,1.20379876,241.74,241.68,68.8]
[1758283818633,10.5309,241.76,241.69,7.14]
[1758283819435,4.92419876,241.79,241.69,7.14]
[1758283820030,6.81,241.8,241.69,7.14]
[1758283820648,6.81,241.8,241.73,7.14]
[1758283821941,10.5302,241.8,241.73,7.14]
[1758283825846,3.7204,241.79,241.73,7.14]
[1758283829356,3.7204,241.79,241.72,7.11]
[1758283829554,3.7206,241.77,241.72,7.11]
[1758283829759,7.13,241.76,241.71,100.78]
[1758283829957,7.13,241.76,241.72,7.11]
[1758283830157,7.13,241.76,241.71,100.78]
[1758283830760,7.13,241.76,241.72,7.11]
[1758283831259,7.13,241.76,241.71,7.11]
[1758283831462,7.13,241.76,241.7,38.78]
[1758283831662,7.13,241.76,241.71,7.11]
[1758283831955,3.7206,241.77,241.71,7.11]
[1758283832258,12.05409876,241.79,241.71,7.11]
[1758283832457,8.33379876,241.79,241.71,7.11]
[1758283833261,7.13,241.79,241.71,7.11]
[1758283833461,8.33379876,241.79,241.71,7.11]
[1758283833861,3.7205,241.78,241.71,7.11]
[1758283836463,3.7207,241.77,241.71,7.11]
[1758283843567,3.7208,241.76,241.71,7.11]
[1758283843771,7.13,241.78,241.68,7.11]
[1758283844869,3.7208,241.75,241.68,7.11]
[1758283845174,7.13,241.78,241.68,7.11]
[1758283846866,3.7211,241.74,241.68,10.8318]
[1758283847067,3.7211,241.74,241.69,7.11]
[1758283847264,3.7211,241.74,241.68,3.7218]
[1758283847470,3.7211,241.74,241.69,7.11]
[1758283847665,3.7211,241.74,241.68,3.7218]
[1758283847869,3.7211,241.74,241.69,7.11]
[1758283848069,3.7211,241.74,241.68,3.7218]
[1758283848265,3.7211,241.74,241.69,7.11]
[1758283848675,3.7211,241.74,241.68,3.7218]
[1758283849370,7.13,241.75,241.66,12.11782087]
[1758283849570,1.20379876,241.76,241.65,7.11]
[1758283849777,3.7216,241.71,241.65,7.11]
[1758283850370,7.13,241.72,241.66,3.7222]
[1758283850571,3.7212,241.73,241.67,7.11]
[1758283852576,3.7212,241.73,241.67,10.832]
[1758283856479,3.7212,241.73,241.67,111.532]
[1758283856872,3.7212,241.73,241.67,104.422]
[1758283857078,3.7212,241.73,241.68,7.21]
[1758283857276,10.7612,241.73,241.68,7.21]
[1758283857469,10.7612,241.73,241.67,104.422]
[1758283857669,10.7612,241.73,241.68,7.21]
[1758283857875,10.7612,241.73,241.67,104.422]
[1758283858081,10.7612,241.73,241.68,7.21]
[1758283858376,10.7612,241.73,241.67,104.422]
[1758283858581,10.7612,241.73,241.68,6.78]
[1758283858986,10.7612,241.73,241.67,104.422]
[1758283859178,7.04,241.73,241.67,104.422]
[1758283859378,7.04,241.73,241.68,6.78]
[1758283860182,7.04,241.73,241.67,104.422]
[1758283860383,7.04,241.73,241.68,6.78]
[1758283860784,7.04,241.73,241.67,104.422]
[1758283860986,7.04,241.73,241.68,6.78]
[1758283861284,7.04,241.73,241.67,104.422]
[1758283861481,7.04,241.73,241.68,6.78]
[1758283861886,7.04,241.73,241.67,104.422]
[1758283862082,7.04,241.73,241.68,6.78]
[1758283862279,10.7612,241.73,241.67,104.422]
[1758283862586,10.7612,241.73,241.68,6.78]
[1758283862785,1.20379876,241.77,241.68,6.78]
[1758283862986,6.64,241.76,241.68,107.48]
[1758283863188,1.20379876,241.77,241.68,107.48]
[1758283863377,6.64,241.76,241.68,107.48]
[1758283863583,3.7209,241.75,241.68,107.48]
[1758283864191,3.7209,241.75,241.69,100.7]
[1758283865090,3.7211,241.74,241.68,6.78]
[1758283865289,1.20379876,241.77,241.7,6.78]
[1758283865490,1.20379876,241.77,241.69,100.7]
[1758283865681,6.64,241.76,241.69,100.7]
[1758283865885,1.88295018,241.79,241.69,100.7]
[1758283866089,6.64,241.78,241.69,100.7]
[1758283866289,1.88295018,241.79,241.69,100.7]
[1758283866489,6.64,241.77,241.69,107.48]
[1758283867793,3.7211,241.74,241.69,100.7]
[1758283867987,10.3611,241.74,241.7,6.78]
[1758283868388,3.7211,241.74,241.69,100.7]
[1758283868887,3.7211,241.74,241.7,6.78]
[1758283869095,10.3611,241.74,241.69,100.7]
[1758283869286,10.3611,241.74,241.7,6.78]
[1758283869691,6.64,241.72,241.66,11.36163235]
[1758283869995,1.88295018,241.76,241.69,100.7]
[1758283870190,6.64,241.75,241.69,100.7]
[1758283870792,3.7215,241.71,241.69,100.7]
[1758283870993,10.3615,241.71,241.69,100.7]
[1758283871289,10.3615,241.71,241.65,6.78]
[1758283871290,6.64,241.71,241.65,6.78]
[1758283871493,59.76235018,241.76,241.66,100.7]
[1758283872597,6.64,241.75,241.66,100.7]
[1758283872791,3.7219,241.69,241.65,6.78]
[1758283872997,6.64,241.73,241.65,107.48]
[1758283873896,10.3619,241.69,241.66,6.78]
[1758283874292,6.64,241.69,241.6,6.78]
[1758283874492,6.64,241.73,241.62,6.78]
[1758283875899,10.3618,241.7,241.62,6.78]
[1758283878098,3.7213,241.72,241.63,6.78]
[1758283879805,3.7213,241.72,241.63,10.5026]
[1758283880000,3.7216,241.71,241.64,6.78]
[1758283880302,6.64,241.72,241.64,107.48]
[1758283880502,6.64,241.72,241.64,6.78]
[1758283881405,6.64,241.65,241.61,100.7]
[1758283881602,1.88295018,241.69,241.58,12.38969723]
[1758283881913,6.64,241.68,241.59,100.7]
[1758283882099,6.64,241.68,241.58,6.78]
[1758283882295,3.7227,241.64,241.58,107.48]
[1758283883701,3.7227,241.64,241.58,100.7]
[1758283884204,3.7227,241.64,241.6,6.78]
[1758283884398,3.7227,241.64,241.59,100.72]
[1758283884605,3.7227,241.64,241.6,6.78]
[1758283884900,10.3627,241.64,241.6,6.78]
[1758283885104,10.3627,241.64,241.59,100.72]
[1758283885603,10.3627,241.64,241.6,6.78]
[1758283886001,10.3627,241.64,241.59,100.72]
[1758283886405,10.3627,241.64,241.6,6.78]
[1758283886605,10.3627,241.64,241.59,100.72]
[1758283887206,10.3627,241.64,241.6,6.78]
[1758283887601,10.3627,241.64,241.59,100.72]
[1758283887801,10.3627,241.64,241.6,6.78]
[1758283888306,10.3627,241.64,241.61,6.87]
[1758283890107,10.3627,241.64,241.6,100.72]
[1758283890407,10.3627,241.64,241.61,6.87]
[1758283891810,10.3627,241.64,241.6,100.72]
[1758283892606,10.3627,241.64,241.61,6.87]
[1758283893909,3.7227,241.64,241.61,6.87]
[1758283894112,3.7227,241.64,241.6,100.72]
[1758283894113,6.79,241.63,241.6,100.72]
[1758283894315,6.79,241.62,241.6,100.72]
[1758283895101,6.79,241.62,241.57,312.58]
[1758283895308,6.79,241.62,241.59,6.87]
[1758283895508,6.79,241.62,241.58,100.72]
[1758283895711,6.79,241.62,241.59,6.87]
[1758283896208,57.8984,241.68,241.59,6.87]
[1758283896413,8.67295018,241.65,241.59,100.72]
[1758283896710,6.79,241.64,241.55,6.87]
[1758283896914,1.88295018,241.65,241.56,13.04]
[1758283897107,6.79,241.64,241.56,13.04]
[1758283897602,3.7234,241.59,241.56,13.04]
[1758283897802,3.7234,241.59,241.56,19.91]
[1758283899014,10.5134,241.59,241.56,19.91]
[1758283899715,3.7234,241.59,241.57,6.87]
[1758283900819,10.5134,241.59,241.57,6.87]
[1758283901109,3.7234,241.59,241.51,16.1811017]
[1758283901314,3.7234,241.59,241.53,6.87]
[1758283902215,6.79,241.66,241.54,6.87]
[1758283903912,3.7227,241.64,241.56,6.87]
[1758283904820,6.79,241.66,241.56,6.87]
[1758283905318,6.79,241.66,241.58,6.87]
[1758283906019,3.723,241.62,241.57,100.72]
[1758283906220,3.723,241.62,241.58,6.87]
[1758283906719,3.723,241.62,241.57,100.72]
[1758283906921,3.7226,241.64,241.58,6.87]
[1758283908818,3.7228,241.63,241.58,6.87]
[1758283909019,3.7228,241.63,241.57,100.72]
[1758283909530,3.7228,241.63,241.58,6.87]
[1758283909726,3.7228,241.63,241.57,100.72]
[1758283910127,3.7228,241.63,241.58,6.87]
[1758283911628,3.7228,241.63,241.57,100.72]
[1758283912028,3.7228,241.63,241.58,6.87]
[1758283912324,3.7228,241.63,241.56,6.87]
[1758283912626,3.7228,241.63,241.59,6.87]
[1758283913024,3.7228,241.63,241.58,33.72]
[1758283913428,3.7228,241.63,241.59,6.87]
[1758283913829,3.7228,241.63,241.58,96.32]
[1758283914023,3.7228,241.63,241.59,6.87]
[1758283914229,3.7228,241.63,241.58,96.32]
[1758283914429,3.7228,241.63,241.58,100.72]
[1758283914831,3.7228,241.63,241.59,6.87]
[1758283915127,3.7228,241.63,241.57,100.72]
[1758283915332,10.5124,241.65,241.58,6.87]
[1758283916135,3.722,241.68,241.58,6.87]
[1758283916931,3.7222,241.67,241.6,3.7231]
[1758283917435,3.7222,241.67,241.61,6.61]
[1758283918831,3.7222,241.67,241.61,29.21]
[1758283919533,3.7224,241.66,241.58,3.7234]
[1758283919836,65.0037,241.7,241.61,6.8]
[1758283920037,65.0037,241.7,241.59,25.9]
[1758283920038,3.7226,241.64,241.59,25.9]
[1758283920233,7.11,241.63,241.59,6.8]
[1758283920438,7.11,241.63,241.57,63.84]
[1758283920735,3.7226,241.64,241.57,57.04]
[1758283921038,3.7222,241.66,241.58,6.8]
[1758283921337,7.11,241.67,241.58,6.8]
[1758283921538,7.11,241.7,241.58,6.8]
[1758283921840,3.7219,241.68,241.6,3.7231]
[1758283922136,3.7219,241.68,241.61,6.8]
[1758283922336,7.11,241.7,241.61,6.8]
[1758283923839,3.7222,241.67,241.61,6.8]
[1758283926736,1.12537076,241.69,241.62,6.8]
[1758283926737,3.7218,241.69,241.62,6.8]
[1758283927541,3.722,241.68,241.62,3.7227]
[1758283928043,3.722,241.68,241.63,6.8]
[1758283928338,3.722,241.68,241.62,3.7227]
[1758283929239,3.722,241.68,241.63,6.8]
[1758283929438,3.722,241.68,241.62,3.7227]
[1758283930141,3.722,241.68,241.63,6.8]
[1758283930843,3.722,241.68,241.62,3.7227]
[1758283931045,3.722,241.68,241.63,6.8]
[1758283931646,3.722,241.68,241.62,3.7227]
[1758283931946,10.832,241.68,241.62,3.7227]
[1758283932248,10.832,241.68,241.63,6.8]
[1758283932446,10.832,241.68,241.62,3.7227]
[1758283932949,10.832,241.68,241.63,6.8]
[1758283933141,10.832,241.68,241.62,3.7227]
[1758283933545,10.832,241.68,241.63,6.8]
[1758283933741,10.832,241.68,241.62,3.7227]
[1758283934641,10.832,241.68,241.63,6.8]
[1758283935048,10.832,241.68,241.62,3.7227]
[1758283935451,10.832,241.68,241.63,6.8]
[1758283935646,7.11,241.73,241.62,6.8]
[1758283935854,7.11,241.8,241.69,6.8]
[1758283936145,7.11,241.8,241.7,15.02]
[1758283936350,7.11,241.8,241.71,10.50226804]
[1758283936547,0.02778936,241.77,241.72,3.70226804]
[1758283936749,7.13778936,241.77,241.73,10.50226804]
[1758283936948,7.13778936,241.77,241.74,10.50226804]
[1758283937146,7.13778936,241.77,241.75,3.70226804]
[1758283937347,7.13778936,241.77,241.76,3.70226804]
[1758283938546,7.13778936,241.77,241.74,6.8]
[1758283938547,7.55778936,241.77,241.64,6.8]
[1758283938752,8.23537076,241.72,241.64,6.8]
[1758283939553,7.11,241.72,241.64,6.8]
[1758283940852,7.11,241.72,241.66,3.7222]
[1758283942857,7.11,241.72,241.66,10.5222]
[1758283943651,7.11,241.72,241.66,111.2022]
[1758283944056,7.11,241.72,241.66,6.8]
[1758283946557,10.8314,241.72,241.66,107.46]
[1758283948454,8.23537076,241.72,241.62,10.6028]
[1758283948661,6.58,241.71,241.63,100.66]
[1758283949956,3.7218,241.69,241.63,100.66]
[1758283950356,3.7218,241.69,241.62,10.6028]
[1758283950653,10.3018,241.69,241.65,6.88]
[1758283951566,6.58,241.69,241.65,6.88]
[1758283951966,6.58,241.69,241.63,6.88]
[1758283952167,6.58,241.69,241.65,107.54]
[1758283952869,3.7217,241.7,241.65,107.54]
[1758283953067,6.58,241.69,241.65,107.54]
[1758283953968,3.7217,241.7,241.65,107.54]
[1758283954266,3.7217,241.7,241.65,6.88]
[1758283954570,6.58,241.67,241.61,31.26]
[1758283954861,3.7226,241.64,241.6,6.88]
[1758283955069,10.3026,241.64,241.56,6.88]
[1758283955262,6.58,241.63,241.6,64.84]
[1758283955974,3.7229,241.62,241.56,6.88]
[1758283956165,6.58,241.62,241.58,100.66]
[1758283956365,1.12537076,241.65,241.58,107.54]
[1758283957069,1.12537076,241.65,241.58,6.88]
[1758283957370,1.12537076,241.65,241.59,74.66]
[1758283957866,1.12537076,241.65,241.6,6.88]
[1758283957867,10.3026,241.64,241.6,6.88]
[1758283960069,6.58,241.64,241.58,100.68]
[1758283960569,6.58,241.64,241.58,6.88]
[1758283961166,6.58,241.64,241.54,6.88]
[1758283961371,6.58,241.64,241.55,100.68]
[1758283961671,3.7228,241.62,241.56,6.88]
[1758283962772,6.58,241.61,241.57,107.56]
[1758283962969,6.58,241.61,241.58,6.88]
[1758283966074,6.58,241.61,241.57,100.68]
[1758283966376,6.58,241.61,241.58,6.88]
[1758283967768,6.58,241.61,241.57,100.68]
[1758283967969,6.58,241.61,241.58,6.88]
[1758283973576,6.58,241.61,241.58,107.56]
[1758283974883,3.7228,241.62,241.58,107.56]
[1758283975181,6.58,241.61,241.58,107.56]
[1758283975381,6.58,241.61,241.58,6.88]
[1758283975583,6.58,241.61,241.58,107.56]
[1758283976084,6.58,241.61,241.58,100.68]
[1758283976278,6.58,241.61,241.59,6.88]
[1758283977480,3.7228,241.62,241.58,100.68]
[1758283977681,6.58,241.61,241.55,6.88]
[1758283977895,6.58,241.61,241.55,107.56]
[1758283978793,10.5033,241.59,241.56,6.6]
[1758283979388,6.78,241.58,241.56,6.6]
[1758283980897,6.78,241.63,241.56,6.6]
[1758283981894,6.78,241.63,241.56,10.3236]
[1758283984094,6.78,241.63,241.56,3.7236]
[1758283984396,6.78,241.63,241.57,6.6]
[1758283985293,3.7223,241.66,241.58,3.7234]
[1758283985499,10.5023,241.66,241.59,6.6]
[1758283986201,10.5023,241.66,241.6,100.68]
[1758283987199,6.78,241.66,241.6,100.68]
[1758283987998,6.78,241.66,241.61,6.6]
[1758283988201,6.78,241.66,241.6,100.68]
[1758283988393,6.78,241.66,241.61,6.6]
[1758283988894,6.78,241.66,241.6,107.28]
[1758283992601,6.78,241.66,241.61,6.6]
[1758283993504,6.78,241.66,241.6,100.68]
[1758283996205,6.78,241.65,241.62,6.6]
[1758283997493,3.7223,241.66,241.6,104.3831]
[1758283997698,3.722,241.68,241.61,6.6]
[1758283998499,10.5017,241.7,241.62,6.6]
[1758283998899,3.7217,241.7,241.63,3.7225]
[1758283999105,10.501,241.74,241.62,4.58163235]
[1758283999305,10.501,241.74,241.63,6.6]
[1758283999805,6.78,241.74,241.66,6.6]
[1758284000005,6.78,241.74,241.66,107.26]
[1758284000804,3.7214,241.72,241.66,107.26]
[1758284001807,3.7214,241.72,241.67,6.6]
[1758284002007,10.501,241.74,241.67,6.6]
[1758284004010,10.501,241.74,241.68,6.6]
[1758284004507,10.501,241.74,241.68,107.24]
[1758284005405,10.501,241.74,241.68,6.6]
[1758284005705,10.501,241.74,241.68,107.24]
[1758284006412,10.501,241.74,241.68,6.6]
[1758284006711,10.501,241.74,241.68,107.24]
[1758284010708,3.7213,241.73,241.68,6.6]
[1758284010920,6.88,241.72,241.68,107.48]
[1758284011217,6.88,241.72,241.69,6.84]
[1758284011411,6.88,241.73,241.61,6.84]
[1758284011616,6.88,241.7,241.62,28.74]
[1758284011912,6.88,241.7,241.62,56.52]
[1758284012314,3.722,241.68,241.62,56.52]
[1758284012814,6.88,241.7,241.62,56.52]
[1758284013615,6.88,241.7,241.61,6.84]
[1758284013813,3.7222,241.66,241.62,6.84]
[1758284014416,3.7222,241.66,241.61,58.44]
[1758284014614,3.7222,241.66,241.62,6.84]
[1758284014811,3.7222,241.66,241.61,58.44]
[1758284015014,3.7222,241.66,241.62,6.84]
[1758284015216,3.7222,241.66,241.6,100.62]
[1758284015714,10.6022,241.66,241.6,100.62]
[1758284016110,10.6022,241.66,241.61,6.84]
[1758284016510,10.6022,241.66,241.6,107.46]
[1758284018026,10.6022,241.66,241.6,100.62]
[1758284018216,10.6022,241.66,241.61,6.84]
[1758284018416,10.6022,241.66,241.6,100.62]
[1758284018813,10.6022,241.66,241.61,6.84]
[1758284019018,10.6022,241.66,241.6,100.62]
[1758284019213,10.6022,241.66,241.61,6.84]
[1758284019417,10.6022,241.66,241.61,100.62]
[1758284020322,10.6022,241.66,241.62,6.84]
[1758284020520,10.6022,241.66,241.61,100.62]
[1758284021024,10.6022,241.66,241.62,6.84]
[1758284021221,3.7222,241.66,241.62,6.84]
[1758284021622,6.88,241.65,241.62,6.84]
[1758284021823,3.7222,241.66,241.61,100.62]
[1758284022018,10.6022,241.66,241.61,100.62]
[1758284022223,10.6022,241.66,241.62,6.84]
[1758284022530,10.6022,241.66,241.61,100.62]
[1758284022724,3.7222,241.66,241.6,6.84]
[1758284023023,3.7222,241.66,241.59,3.7232]
[1758284023024,3.7222,241.66,241.61,100.62]
[1758284023425,3.722,241.68,241.62,6.84]
[1758284026632,57.883,241.74,241.62,6.84]
[1758284026633,6.88,241.74,241.62,6.84]
[1758284027326,6.88,241.74,241.63,6.84]
[1758284027527,3.7213,241.72,241.63,6.84]
[1758284028820,3.7213,241.72,241.65,3.7223]